bitfinex/quotes_ETHUSD_20240711
["timestamp","ask_amount","ask_price","bid_price","bid_amount"]
[1720735506656,1.1118253,3115.7,3114.8,3.21045]
[1720735506852,0.00081182,3115.8,3114.8,3.21045]
[1720735506853,1.1118253,3115.6,3114.8,3.21045]
[1720735507013,1.1118253,3115.5,3114.8,3.21045]
[1720735507338,1.1118253,3115.4,3114.8,3.21045]
[1720735507655,0.00081182,3115.8,3114.8,3.21045]
[1720735507656,1.11182212,3115.3,3114.8,3.21045]
[1720735507955,1.11182244,3115.2,3114.7,3.21053]
[1720735508169,1.11182244,3115.1,3114.8,3.21043]
[1720735508327,1.11182244,3115.7,3114.8,3.21043]
[1720735508531,1.11182244,3115.6,3114.8,3.21043]
[1720735508754,1.11182244,3115.5,3114.8,3.21043]
[1720735509056,1.11182244,3115.4,3114.8,3.852537]
[1720735509264,1.11182244,3115.3,3114.8,3.852537]
[1720735509566,1.11182244,3115.2,3114.8,3.852537]
[1720735509858,0.00081182,3115.8,3114.8,3.852537]
[1720735510068,1.11178178,3115.7,3114.8,3.21043]
[1720735510272,0.00081182,3115.8,3114.8,3.21043]
[1720735510273,1.11178178,3115.6,3114.8,3.21043]
[1720735510565,0.00081182,3115.8,3114.8,3.21043]
[1720735510566,1.11179045,3115.5,3114.8,3.21043]
[1720735510748,3.00081182,3115.8,3115.0,3.21019]
[1720735511065,1.11177653,3115.7,3115.0,3.21019]
[1720735511272,1.11177653,3115.7,3115.2,3.21005]
[1720735511765,0.00081182,3115.8,3115.6,3.20965]
[1720735511968,0.00081182,3115.8,3115.7,3.27373466]
[1720735512662,0.00081182,3115.8,3115.7,3.20955]
[1720735512892,0.00081182,3115.8,3115.7,15.05012891]
[1720735513031,0.00081182,3115.8,3115.7,20.04096289]
[1720735513365,3.20757,3117.7,3116.6,3.20854]
[1720735513668,4.3188282,3117.6,3116.6,3.20854]
[1720735514003,4.3188282,3117.6,3115.9,3.20931]
[1720735514004,3.20802,3117.2,3115.9,3.20931]
[1720735514173,3.20802,3117.2,3115.7,7.71453289]
[1720735514174,3.20824,3117.0,3115.7,7.71453289]
[1720735514463,1.11133842,3116.9,3116.1,3.20913]
[1720735514680,1.11133842,3116.9,3116.3,3.20892]
[1720735515302,4.11133842,3117.2,3116.3,3.20892]
[1720735515793,7.49,3117.9,3115.8,3.0]
[1720735515794,7.49,3118.4,3116.4,3.06415835]
[1720735516063,3.20729,3117.9,3116.8,3.20832]
[1720735516264,3.20745,3117.8,3116.6,3.20862]
[1720735516468,1.11105416,3117.7,3116.9,3.20828]
[1720735516685,1.11105416,3117.7,3116.4,2.3979]
[1720735516686,1.11105416,3117.8,3116.8,3.20836]
[1720735516894,1.11110099,3117.7,3117.2,3.20793]
[1720735517033,2.42,3118.1,3116.5,3.046]
[1720735517034,3.20725,3118.0,3116.9,3.20829]
[1720735517231,2.42,3118.1,3116.2,3.0]
[1720735517232,4.3183704,3117.9,3116.6,3.20859]
[1720735517476,2.42,3118.1,3117.0,3.20819]
[1720735517477,1.11112406,3117.8,3117.0,3.20819]
[1720735517772,3.20719,3118.0,3117.0,3.20819]
[1720735517972,4.88115101,3117.9,3116.7,3.20848]
[1720735518284,3.0,3117.8,3116.9,3.20824]
[1720735518577,0.562719,3117.9,3117.0,3.20813]
[1720735518929,0.562719,3117.9,3116.7,3.20848]
[1720735519185,3.770089,3117.9,3116.7,3.20848]
[1720735519351,3.6770089,3117.8,3116.7,3.20848]
[1720735519687,3.6770089,3117.8,3116.2,3.0]
[1720735519688,3.6770089,3117.8,3116.8,3.20841]
[1720735519834,0.6770089,3117.8,3116.8,3.20841]
[1720735520929,0.6770089,3117.8,3116.6,3.2086]
[1720735521198,3.20812,3117.1,3115.9,3.20933]
[1720735521497,2.4732,3117.4,3116.4,3.20882]
[1720735521880,2.4732,3117.4,3116.5,3.20869]
[1720735522814,2.4732,3117.4,3116.4,3.20882]
[1720735523789,5.4732,3117.4,3116.4,3.20882]
[1720735524111,0.868092,3117.3,3116.4,3.20882]
[1720735524323,3.868092,3117.3,3116.5,3.20871]
[1720735524503,3.868092,3117.3,3116.2,3.20894]
[1720735524679,7.076002,3117.3,3116.0,3.20916]
[1720735525330,4.31951772,3117.2,3116.0,3.20923]
[1720735525515,7.02691097,3117.1,3116.0,3.20923]
[1720735525977,3.81876097,3117.1,3116.0,3.20923]
[1720735526177,3.81876097,3117.1,3116.2,3.20895]
[1720735526789,0.868092,3117.3,3116.2,2.281]
[1720735526982,5.68101,3117.4,3116.2,2.281]
[1720735527184,5.68101,3117.4,3116.4,3.20882]
[1720735527383,5.68101,3117.4,3116.2,5.49002]
[1720735527384,3.0,3117.3,3116.3,3.20891]
[1720735527583,3.0,3117.3,3116.5,3.20863]
[1720735527785,3.0,3117.3,3116.7,3.20851]
[1720735527986,2.4732,3117.4,3116.7,3.20851]
[1720735528233,3.0,3117.6,3116.7,3.20851]
[1720735528234,3.0,3117.6,3116.9,3.20828]
[1720735528526,0.37447088,3117.6,3116.9,3.20828]
[1720735529021,0.37447088,3117.6,3116.6,2.281]
[1720735529232,3.37447088,3117.6,3116.6,5.48955]
[1720735529440,3.37447088,3117.6,3116.9,3.20822]
[1720735529601,0.37447088,3117.6,3116.9,3.20822]
[1720735530014,0.37447088,3117.6,3117.0,3.2082]
[1720735530395,3.0,3117.8,3117.0,3.2082]
[1720735530603,2.3984,3117.9,3116.8,2.93341]
[1720735530604,5.60569,3117.9,3116.8,2.93341]
[1720735530809,4.11110541,3117.8,3116.8,2.93341]
[1720735531002,3.0,3117.8,3116.8,2.93341]
[1720735531204,1.1111292,3117.7,3116.6,6.41707]
[1720735531432,6.20749,3117.8,3116.6,3.20852]
[1720735531433,0.73186192,3117.6,3116.6,3.20852]
[1720735531736,3.20749,3117.8,3116.6,3.20852]
[1720735531935,1.11112914,3117.7,3116.6,3.20852]
[1720735532124,3.20749,3117.8,3116.6,3.20852]
[1720735532324,3.20748,3117.8,3116.2,5.281]
[1720735532494,2.3984,3117.9,3116.4,3.20882]
[1720735532495,3.20767,3117.6,3116.4,3.20882]
[1720735532696,5.05070734,3117.5,3116.4,3.20882]
[1720735532903,2.4056,3117.3,3116.2,2.281]
[1720735533209,2.4056,3117.3,3116.2,3.20902]
[1720735533410,2.4056,3117.3,3116.2,5.49002]
[1720735533618,1.11128956,3117.2,3116.2,5.49002]
[1720735533943,0.67247996,3117.1,3116.2,5.49002]
[1720735534355,0.67247996,3117.1,3116.2,2.281]
[1720735534565,0.67247996,3117.1,3116.0,6.4183]
[1720735534857,0.67247996,3117.1,3116.3,3.20885]
[1720735535048,2.4056,3117.3,3116.3,3.20885]
[1720735535354,1.11123967,3117.2,3116.3,3.20885]
[1720735535562,1.11123967,3117.1,3116.3,3.20885]
[1720735535858,2.4056,3117.3,3116.3,3.20885]
[1720735536035,1.11124092,3117.2,3116.3,3.20885]
[1720735536233,0.35168409,3117.1,3116.3,3.20885]
[1720735536458,0.35168409,3117.1,3116.5,3.20872]
[1720735536874,0.35168409,3117.1,3116.2,2.281]
[1720735537032,0.35168409,3117.1,3116.2,5.49002]
[1720735537361,1.11127661,3117.0,3116.2,5.49002]
[1720735537670,1.11130277,3116.9,3116.2,3.20902]
[1720735537975,0.73187976,3117.5,3116.6,3.20861]
[1720735538147,1.11123484,3117.4,3116.3,5.48989]
[1720735538459,1.11123484,3117.3,3116.4,3.20882]
[1720735538665,1.11123484,3117.4,3116.5,3.20872]
[1720735538858,1.11123484,3117.3,3116.6,3.20857]
[1720735539057,1.11123484,3117.2,3116.4,3.20875]
[1720735539365,1.11123484,3117.1,3116.5,3.20871]
[1720735539555,1.11123484,3117.0,3116.5,3.20871]
[1720735539863,9.41528,3117.6,3116.5,3.20871]
[1720735540162,1.11121779,3117.5,3116.5,3.20871]
[1720735540387,1.11121779,3117.4,3116.5,3.20871]
[1720735540731,1.11121779,3117.3,3116.5,3.20871]
[1720735540930,1.11121779,3117.5,3116.5,3.20871]
[1720735541131,0.73188078,3117.4,3116.5,3.20871]
[1720735541334,1.11121779,3117.3,3116.4,3.20875]
[1720735541666,1.11121779,3117.2,3116.4,3.20875]
[1720735541862,1.11121779,3117.1,3116.4,3.20875]
[1720735542169,1.11121779,3117.0,3116.2,3.20903]
[1720735542462,1.11121779,3116.9,3116.3,3.20891]
[1720735542629,1.11121779,3117.3,3116.4,3.20875]
[1720735542832,0.48430986,3117.2,3116.2,3.209]
[1720735543061,1.11121779,3117.1,3116.4,3.20876]
[1720735543380,1.11128864,3117.0,3116.4,3.20876]
[1720735543669,0.73188078,3117.4,3115.9,2.281]
[1720735543670,1.11128864,3116.9,3116.0,3.20923]
[1720735543869,1.11128864,3116.8,3116.0,3.20923]
[1720735544080,1.11128864,3116.7,3116.0,3.20923]
[1720735544305,2.3012,3116.9,3115.6,3.20961]
[1720735544608,4.31970864,3116.8,3115.7,3.20953]
[1720735544811,1.11128864,3116.7,3115.7,3.20953]
[1720735545108,1.11128864,3116.6,3115.7,3.20953]
[1720735545292,3.20863,3116.6,3115.5,2.281]
[1720735545465,1.43215164,3116.5,3115.8,3.20944]
[1720735545785,1.11128864,3116.4,3115.9,5.49028]
[1720735545973,4.11128864,3117.0,3115.9,2.281]
[1720735546176,3.36858864,3116.9,3115.6,3.2096]
[1720735546371,3.0,3116.8,3115.6,3.2096]
[1720735546702,4.32002646,3116.7,3115.6,3.2096]
[1720735546898,4.84348911,3116.6,3115.6,3.2096]
[1720735547268,1.11148646,3116.5,3115.2,3.21001]
[1720735547467,3.36878646,3116.4,3115.1,5.49107]
[1720735547666,1.11148646,3116.3,3115.1,5.49107]
[1720735547988,1.11148646,3116.3,3114.8,3.21043]
[1720735547989,3.20904,3116.2,3114.8,3.21043]
[1720735548191,2.2573,3116.4,3114.7,2.281]
[1720735548192,3.20955,3115.7,3114.7,2.281]
[1720735548396,1.11148646,3115.6,3114.7,2.281]
[1720735548598,5.52088,3116.0,3114.9,3.21036]
[1720735548599,1.11148646,3115.9,3114.9,3.21036]
[1720735548768,1.11148646,3115.8,3114.9,3.21036]
[1720735549120,1.11148646,3115.7,3114.9,3.21036]
[1720735549327,1.11148646,3115.8,3114.9,3.21036]
[1720735549526,1.75379511,3115.8,3114.9,3.21036]
[1720735549827,1.11176479,3115.7,3115.0,0.06419514]
[1720735550023,1.11176479,3115.6,3115.2,2.281]
[1720735550229,2.4121,3116.4,3115.2,2.281]
[1720735550380,1.1115527,3116.3,3115.5,3.20975]
[1720735550576,1.1115527,3116.2,3115.5,3.20975]
[1720735550922,2.4121,3116.4,3115.5,3.20975]
[1720735551234,0.37318808,3117.3,3115.5,3.20975]
[1720735551235,1.11149203,3116.3,3115.5,3.20975]
[1720735551458,1.11149203,3116.2,3115.7,3.20952]
[1720735551739,2.3964,3116.9,3115.7,3.76499004]
[1720735551936,1.11146773,3116.8,3115.7,3.20952]
[1720735552112,1.11146773,3116.7,3115.8,0.06417895]
[1720735552434,2.3964,3116.9,3115.8,0.06417895]
[1720735552435,1.11146773,3116.6,3115.8,0.06417895]
[1720735552578,1.11146773,3116.5,3115.9,3.2734493]
[1720735552781,1.11146773,3116.4,3116.2,3.20901]
[1720735553093,2.76958808,3117.3,3116.4,3.20879]
[1720735553396,1.11133398,3117.2,3116.4,3.20879]
[1720735553629,1.11133398,3117.1,3116.4,3.20879]
[1720735553926,2.76958808,3117.3,3116.4,3.20879]
[1720735553927,1.11133398,3117.0,3116.4,3.20879]
[1720735554152,1.11133398,3116.9,3116.5,3.20871]
[1720735554282,1.11133398,3116.8,3116.5,0.64175]
[1720735554482,2.4094,3117.7,3116.9,3.20827]
[1720735554700,1.11113016,3117.6,3116.5,5.48968]
[1720735554883,1.11113016,3117.5,3116.5,5.48968]
[1720735555639,1.11113016,3117.5,3116.5,3.20868]
[1720735555840,0.43187202,3117.4,3116.3,3.20891]
[1720735556285,1.11126304,3117.3,3116.3,3.20891]
[1720735556478,1.11126304,3117.2,3116.3,3.20891]
[1720735556715,1.11126304,3117.1,3116.3,3.20891]
[1720735557126,1.11126304,3117.0,3116.3,3.20891]
[1720735557443,1.11126304,3116.9,3116.3,3.20891]
[1720735557621,3.43187202,3117.4,3116.3,3.20891]
[1720735557803,1.77521503,3117.3,3116.3,3.20891]
[1720735557984,1.11125783,3117.2,3116.4,3.20882]
[1720735558191,1.11125783,3117.1,3116.4,3.20882]
[1720735558447,2.4189,3116.9,3115.6,2.3373]
[1720735558754,1.46427361,3116.8,3115.7,3.2095]
[1720735559026,1.11125783,3116.7,3115.7,3.20948]
[1720735559570,4.11125783,3116.7,3115.7,3.20948]
[1720735559726,1.85768519,3116.6,3115.8,3.20943]
[1720735559924,0.74642736,3116.6,3115.8,3.20943]
[1720735560147,1.1114617,3116.5,3115.9,3.20933]
[1720735560423,1.1114617,3116.4,3115.2,2.281]
[1720735560662,1.1114617,3116.3,3115.3,3.20987]
[1720735560972,3.0,3116.6,3115.8,3.20943]
[1720735560973,1.1114617,3116.2,3115.8,3.20943]
[1720735561166,0.35301578,3116.8,3115.3,0.549087]
[1720735561167,1.1114617,3116.5,3115.3,3.758947]
[1720735561366,4.1114617,3116.6,3115.3,3.758947]
[1720735561574,1.1114617,3116.5,3115.5,3.20967]
[1720735561723,0.41114617,3116.4,3115.3,3.20986]
[1720735561930,1.11162157,3116.3,3115.3,3.20986]
[1720735562167,1.11162157,3116.2,3115.4,3.20984]
[1720735562493,1.11162157,3116.1,3115.6,2.281]
[1720735562778,3.0,3116.6,3115.7,3.20947]
[1720735563023,0.35301578,3116.8,3115.7,3.20947]
[1720735563024,1.11141175,3116.5,3115.7,3.20947]
[1720735563141,1.11141175,3116.4,3115.7,3.20947]
[1720735563453,3.35301578,3116.8,3115.7,3.20947]
[1720735563454,3.35301578,3116.8,3115.7,6.41894]
[1720735563654,1.68856122,3116.7,3115.7,3.20947]
[1720735563986,1.11136964,3116.6,3115.8,3.20943]
[1720735564226,1.11136964,3116.5,3115.8,3.20943]
[1720735564589,1.11136964,3116.4,3116.0,3.2092]
[1720735564794,3.0,3116.8,3116.0,3.2092]
[1720735565092,1.65324723,3116.7,3115.6,5.49057]
[1720735565390,1.65324723,3116.7,3115.7,3.20954]
[1720735565391,1.1114758,3116.6,3115.7,3.20954]
[1720735565572,1.1114758,3116.5,3115.8,3.20943]
[1720735565892,1.1114758,3116.4,3115.8,3.20943]
[1720735566187,1.1114758,3116.3,3115.8,3.20943]
[1720735566354,0.54189,3116.7,3115.8,3.20943]
[1720735566355,1.1114758,3116.2,3115.8,3.20943]
[1720735566561,0.54189,3116.7,3115.8,3.20943]
[1720735566761,1.46566491,3116.6,3115.8,3.20943]
[1720735566990,1.11147591,3116.5,3115.8,3.20943]
[1720735567186,0.54189,3116.7,3115.8,3.20943]
[1720735567187,1.11147591,3116.4,3115.8,3.20943]
[1720735567388,1.11147591,3116.3,3115.8,3.20943]
[1720735567593,0.54189,3116.7,3115.8,3.20943]
[1720735567890,1.46562545,3116.6,3115.8,3.20943]
[1720735568055,1.11143645,3116.5,3115.8,3.20943]
[1720735568260,1.11143645,3116.4,3115.8,3.20943]
[1720735568462,1.11143645,3116.3,3115.8,3.20943]
[1720735568664,0.54189,3116.7,3115.8,3.20943]
[1720735568865,1.11141524,3116.6,3115.8,3.20943]
[1720735569062,1.27674576,3116.5,3115.8,3.20943]
[1720735569352,1.11141524,3116.4,3115.6,5.49061]
[1720735570667,1.11141524,3116.4,3115.7,3.20954]
[1720735571351,1.11141524,3116.4,3115.6,5.49058]
[1720735571976,1.11141524,3116.4,3115.7,3.20953]
[1720735572186,1.11148323,3116.3,3115.7,3.20953]
[1720735572391,1.11148323,3116.2,3115.7,3.20953]
[1720735572590,0.54189,3116.7,3115.7,3.20953]
[1720735572764,1.1115098,3116.6,3115.7,3.20953]
[1720735573363,1.1115098,3116.6,3115.6,2.281]
[1720735573587,3.20874,3116.5,3115.2,5.49098]
[1720735573802,1.84353478,3116.4,3115.2,5.49098]
[1720735574112,1.1115098,3116.3,3115.5,3.20967]
[1720735574253,4.1095098,3116.6,3115.5,3.20967]
[1720735574459,1.1115098,3116.5,3115.5,3.20967]
[1720735575557,1.11152842,3116.4,3115.5,3.20967]
[1720735575779,1.11152842,3116.3,3115.5,3.851613]
[1720735575968,1.11152842,3116.2,3115.5,3.851613]
[1720735576297,1.11152842,3116.1,3115.3,3.20989]
[1720735576511,1.11152842,3116.0,3115.2,5.49101]
[1720735576661,1.11152842,3116.0,3115.2,2.281]
[1720735576662,1.11152842,3115.9,3115.2,2.281]
[1720735576859,1.11152842,3115.9,3114.9,3.21031]
[1720735577211,4.45403126,3115.9,3114.9,3.21031]
[1720735577390,1.11152842,3115.8,3114.9,3.21031]
[1720735578428,1.11152842,3115.8,3114.5,2.2739]
[1720735578429,4.32097842,3115.8,3114.5,3.21069]
[1720735578735,4.32097842,3115.8,3114.4,2.281]
[1720735578736,4.11186827,3115.7,3114.7,3.21058]
[1720735578936,4.06638211,3115.7,3114.7,6.742138]
[1720735579094,4.06638211,3115.7,3114.8,3.21046]
[1720735579319,4.06638211,3115.7,3114.8,6.42086]
[1720735579495,2.3135,3116.0,3115.1,3.21014]
[1720735580247,1.11185586,3115.6,3115.1,3.21014]
[1720735580413,1.11185586,3115.5,3115.1,3.21014]
[1720735580606,1.11185586,3115.4,3115.1,3.21014]
[1720735580812,1.11185586,3115.3,3115.1,0.321014]
[1720735581007,1.11185586,3115.2,3114.8,5.49143]
[1720735581211,6.20934,3115.9,3114.8,5.49143]
[1720735581425,1.11183008,3115.8,3114.8,5.49143]
[1720735581597,1.11183008,3115.7,3114.8,5.49143]
[1720735581814,2.28504408,3115.8,3114.8,6.3937458]
[1720735581993,1.11183008,3115.7,3114.8,6.3937458]
[1720735582200,1.11183008,3115.6,3114.8,6.3937458]
[1720735582401,1.11183008,3115.5,3114.8,6.3937458]
[1720735582595,1.11183008,3115.4,3114.8,6.3937458]
[1720735582800,1.11183008,3115.3,3114.9,0.67148038]
[1720735583010,1.173214,3115.8,3114.9,0.67148038]
[1720735583011,1.11184641,3115.2,3114.9,0.67148038]
[1720735583244,1.173214,3115.8,3114.8,3.1833158]
[1720735583425,1.11187673,3115.7,3114.8,2.281]
[1720735583631,1.11187854,3115.7,3114.8,2.281]
[1720735583842,1.11187854,3115.6,3114.8,2.281]
[1720735584044,1.11187854,3115.6,3113.9,12.29]
[1720735584045,4.3216906,3115.5,3114.4,2.281]
[1720735584246,4.1118806,3115.4,3114.5,3.759909]
[1720735584447,1.1118806,3115.3,3114.5,3.759909]
[1720735584803,1.1118806,3115.4,3114.5,3.759909]
[1720735585836,1.1118806,3115.4,3114.5,0.549199]
[1720735586023,0.73216606,3115.3,3114.4,5.49188]
[1720735586217,1.1118806,3115.2,3114.4,5.49188]
[1720735586420,2.3962,3115.2,3114.4,2.281]
[1720735586622,1.1119827,3115.1,3114.6,3.21062]
[1720735586833,6.778884,3115.8,3114.6,3.21062]
[1720735587107,5.08977982,3115.7,3114.8,3.21041]
[1720735587424,1.11189142,3115.6,3115.0,3.21023]
[1720735587740,1.11189142,3115.5,3114.8,5.4914]
[1720735587922,1.11189142,3115.4,3114.8,5.4914]
[1720735588247,1.11189142,3115.3,3114.8,5.4914]
[1720735588434,1.11189142,3115.2,3114.8,5.4914]
[1720735588608,3.0,3115.7,3114.8,5.4914]
[1720735588806,1.1118619,3115.6,3114.8,5.4914]
[1720735589047,1.1118619,3115.5,3114.8,5.4914]
[1720735589536,1.1118619,3115.4,3114.8,5.4914]
[1720735589739,1.1118619,3115.6,3114.8,5.4914]
[1720735589921,1.1118619,3115.5,3114.8,8.70181]
[1720735590126,1.1118619,3115.6,3114.8,5.4914]
[1720735590322,3.53962,3115.7,3114.8,5.4914]
[1720735590528,1.11185216,3115.6,3114.8,5.4914]
[1720735591734,1.11185216,3115.6,3114.8,6.3937102]
[1720735592106,1.11185216,3115.6,3114.9,3.2103]
[1720735592731,1.11185216,3115.6,3115.0,0.06419606]
[1720735593049,10.29681254,3116.5,3115.5,3.20975]
[1720735593050,2.4416,3116.5,3115.5,3.20975]
[1720735593254,1.35574918,3116.4,3115.3,5.61497]
[1720735593455,1.11158918,3116.3,3115.4,3.20983]
[1720735593621,2.4416,3116.5,3115.4,3.20983]
[1720735593975,1.11163503,3116.4,3115.4,3.20983]
[1720735594146,1.11159394,3116.3,3115.2,5.49101]
[1720735594316,1.11159394,3116.2,3115.3,0.549101]
[1720735594518,1.11159394,3116.3,3115.3,0.549101]
[1720735596160,1.11159394,3116.3,3115.3,3.759061]
[1720735596319,3.20914,3116.1,3115.0,3.21019]
[1720735596655,1.11159394,3116.0,3114.8,5.4914]
[1720735596862,1.11159394,3116.0,3114.9,7.5396162]
[1720735596863,1.11178699,3115.9,3114.9,7.5396162]
[1720735597039,1.11178699,3115.8,3114.9,4.5396162]
[1720735597240,1.11178699,3115.9,3114.9,1.3292462]
[1720735597431,1.11178699,3115.8,3114.9,1.3292462]
[1720735597628,2.455,3115.7,3114.4,5.49184]
[1720735597831,3.20983,3115.5,3114.4,2.281]
[1720735598151,3.21007,3115.2,3114.2,3.21102]
[1720735598315,1.11178699,3115.1,3114.2,3.21102]
[1720735599114,4.32176699,3115.3,3114.0,11.14731]
[1720735599453,1.84396369,3115.2,3114.0,8.70351]
[1720735599754,1.11178699,3115.1,3114.1,3.89198439]
[1720735600153,1.11209758,3115.0,3114.1,3.89198439]
[1720735600333,1.11209758,3114.9,3114.1,0.68079439]
[1720735600520,4.32258758,3114.8,3113.6,5.49267]
[1720735600722,1.11209758,3114.7,3113.6,5.49267]
[1720735600922,7.32273758,3114.7,3113.6,2.281]
[1720735601176,1.11209758,3114.6,3113.7,0.06422703]
[1720735601326,1.11209758,3114.6,3113.6,2.281]
[1720735601327,0.43227376,3114.5,3113.6,2.281]
[1720735601523,1.11209758,3114.4,3113.6,2.281]
[1720735602043,1.11209758,3114.4,3113.7,3.21152]
[1720735602241,1.11209758,3114.5,3113.6,2.281]
[1720735602452,1.11209758,3114.7,3113.6,5.49267]
[1720735602658,1.11209758,3114.6,3113.7,0.549267]
[1720735602975,3.0,3114.8,3113.8,3.21149]
[1720735602976,1.11209758,3114.5,3113.8,3.21149]
[1720735603143,1.11209758,3114.5,3113.9,3.2114]
[1720735603344,1.11209758,3114.7,3113.9,3.21134]
[1720735603526,1.11209758,3114.6,3113.8,3.21149]
[1720735603881,1.11222916,3114.5,3113.8,3.21149]
[1720735604166,1.11222916,3114.4,3113.8,3.21149]
[1720735604415,1.11222916,3114.7,3113.7,0.549267]
[1720735604540,1.11222916,3114.6,3113.4,3.21185]
[1720735604742,6.21054,3114.8,3113.4,3.21185]
[1720735604743,3.2108,3114.5,3113.4,3.21185]
[1720735605040,4.11222916,3114.4,3113.2,5.49305]
[1720735605371,1.11222916,3114.3,3113.3,0.790675]
[1720735605663,2.4867,3114.2,3113.2,2.281]
[1720735605865,1.11222916,3114.1,3113.2,2.281]
[1720735606171,1.11222916,3114.0,3113.4,3.21186]
[1720735606328,1.11222916,3114.0,3113.2,5.49306]
[1720735606329,1.11233962,3114.0,3113.2,5.49306]
[1720735606527,3.211,3114.3,3113.3,0.549306]
[1720735606728,4.32345653,3114.2,3113.2,2.281]
[1720735606926,1.11235653,3114.1,3113.2,2.281]
[1720735607261,1.11235653,3114.1,3113.3,3.21201]
[1720735607430,1.11235653,3114.3,3113.3,3.21201]
[1720735608190,1.11235653,3114.3,3113.2,2.281]
[1720735608463,0.53766475,3114.2,3113.2,2.281]
[1720735608660,1.11235653,3114.1,3113.2,2.281]
[1720735609050,1.11235653,3114.1,3113.2,5.4931]
[1720735609588,1.11235653,3114.1,3113.3,3.21202]
[1720735609970,1.11238834,3114.0,3113.3,3.21202]
[1720735610277,4.26429092,3114.4,3113.3,4.082532]
[1720735610478,1.11238815,3114.3,3113.3,3.21202]
[1720735610680,1.11238815,3114.2,3113.3,3.21202]
[1720735610987,1.11238815,3114.1,3113.3,3.21202]
[1720735611293,1.11238815,3114.0,3113.3,3.21202]
[1720735611489,1.11238815,3114.3,3113.3,3.21202]
[1720735611687,1.11236032,3114.2,3113.4,0.549302]
[1720735612110,1.05338092,3114.4,3113.4,0.549302]
[1720735612399,1.1123397,3114.3,3113.4,0.549302]
[1720735612561,1.1123397,3114.2,3113.3,3.21202]
[1720735612762,4.26433092,3114.4,3113.3,3.21202]
[1720735612961,1.11238157,3114.3,3113.3,3.21202]
[1720735613163,4.32352157,3114.2,3112.9,3.21235]
[1720735613363,5.56805,3113.9,3112.8,2.281]
[1720735613607,8.20197541,3113.8,3112.5,10.6928]
[1720735613814,4.32424252,3113.7,3112.5,10.6928]
[1720735613962,4.32424252,3113.7,3112.5,13.90556]
[1720735613963,4.11260252,3113.6,3112.5,13.90556]
[1720735614163,1.11260252,3113.5,3112.7,3.21263]
[1720735614395,1.11260252,3113.5,3112.5,10.69276]
[1720735614396,3.0,3113.6,3112.6,3.21274]
[1720735614694,1.73379302,3113.5,3112.6,3.21274]
[1720735614869,0.621162,3113.5,3112.6,3.21274]
[1720735615771,0.621162,3113.5,3112.5,3.21284]
[1720735616098,4.32465337,3113.4,3112.3,3.21297]
[1720735616299,3.21194,3113.4,3112.3,3.21297]
[1720735616528,3.0,3113.3,3112.3,3.21297]
[1720735616806,3.21233,3113.0,3111.9,3.21339]
[1720735616960,0.321233,3112.9,3111.9,3.21339]
[1720735617164,3.533743,3112.9,3111.7,3.21367]
[1720735617388,6.21255,3112.8,3111.7,3.21367]
[1720735617810,6.21255,3112.8,3111.5,5.49561411]
[1720735617992,6.21255,3112.8,3111.5,2.28181411]
[1720735617993,3.21264,3112.7,3111.5,2.28181411]
[1720735618174,1.11300836,3112.6,3111.5,2.28181411]
[1720735618376,6.21279,3112.6,3111.5,0.00081411]
[1720735618608,3.0,3112.6,3111.5,0.00081411]
[1720735618770,4.32604902,3112.5,3111.5,0.00081411]
[1720735619104,3.7326049,3112.4,3111.6,3.21374]
[1720735619263,3.0,3112.6,3111.6,3.21374]
[1720735619471,6.21276,3112.6,3111.6,3.21377]
[1720735619673,3.0,3112.6,3111.6,3.21377]
[1720735619984,3.0,3112.6,3111.8,3.21355]
[1720735620378,5.4758,3112.7,3111.8,3.21355]
[1720735620797,5.4758,3112.7,3111.8,3.27781342]
[1720735620993,2.4051,3113.2,3112.4,3.21286]
[1720735621206,2.4051,3113.2,3112.4,2.281]
[1720735621406,2.4051,3113.2,3111.9,3.0]
[1720735621407,5.61724,3113.2,3112.0,2.281]
[1720735621570,3.21255,3112.8,3111.7,3.21367]
[1720735621774,0.321255,3112.7,3111.8,3.21356]
[1720735622135,3.21232,3113.1,3112.0,3.21329]
[1720735622276,6.21235,3113.0,3111.8,3.21353]
[1720735622476,6.21235,3113.0,3111.9,3.21345]
[1720735622871,3.0,3113.0,3112.2,3.21306]
[1720735623077,2.4051,3113.2,3112.0,2.281]
[1720735623078,3.21232,3113.1,3112.0,2.281]
[1720735623315,0.561742,3113.0,3111.9,3.21343]
[1720735623610,3.561742,3113.0,3111.9,3.21343]
[1720735623908,3.561742,3113.0,3112.0,3.21333]
[1720735624075,3.0,3113.1,3112.0,3.21333]
[1720735624276,3.21224,3113.1,3112.0,3.21333]
[1720735624583,3.0,3113.0,3112.0,3.21333]
[1720735624893,3.0,3113.0,3111.8,6.42707]
[1720735625090,3.0,3113.0,3111.8,4.084307]
[1720735625091,0.621224,3112.9,3111.8,4.084307]
[1720735625345,0.621224,3112.9,3111.6,5.49474]
[1720735625474,2.4051,3113.2,3111.6,5.49474]
[1720735625475,3.21254,3112.8,3111.6,5.49474]
[1720735625678,3.0,3112.7,3111.7,3.21367]
[1720735625980,3.0,3113.1,3112.1,3.21325]
[1720735626190,2.4051,3113.2,3112.1,3.21325]
[1720735626482,4.8869173,3113.1,3111.8,3.21353]
[1720735626680,4.1128913,3113.0,3111.8,3.21353]
[1720735626882,1.1128913,3112.9,3111.7,0.06426325]
[1720735627192,1.1128913,3112.9,3112.0,3.21334]
[1720735627387,3.0,3113.0,3112.1,0.06426126]
[1720735627584,1.11292445,3112.9,3112.0,5.49434]
[1720735627784,0.5966816,3113.0,3112.0,5.49434]
[1720735628411,1.11289258,3112.9,3112.0,5.49434]
[1720735628620,0.5966816,3113.0,3112.0,3.21334]
[1720735628821,3.0,3113.1,3111.8,0.06425998]
[1720735629030,2.4051,3113.2,3112.4,3.21294]
[1720735629529,2.4051,3113.2,3112.0,5.49432]
[1720735629679,1.11280356,3113.1,3112.3,3.21299]